[Event "Titled Tuesday Blitz June 22 2021"]
[White "Guliev, Logman"]
[Black "Jarovinsky, Alexey"]
[WhiteFideId "13400061"]
[BlackFideId "14115131"]
[WhiteElo "2128"]
[BlackElo "2446"]
[Result "1-0"]
[Round "11"]
[TimeControl "180+1"]
[Date "2021.06.22"]
[WhiteClock "0:00:05"]
[BlackClock "0:00:01"]

1. e4 {[%clk 0:03:00]}  Nc6 {[%clk 0:03:00]} 2. d4 {[%clk 0:02:59]}  d5 {[%clk 0:02:59]} 3. e5 {[%clk 0:02:59]}  Bf5 {[%clk 0:02:59]} 4. c3 {[%clk 0:02:59]}  f6 {[%clk 0:02:58]} 5. f4 {[%clk 0:02:55]}  Qd7 {[%clk 0:02:52]} 6. Bd3 {[%clk 0:02:53]}  Nh6 {[%clk 0:02:51]} 7. Nf3 {[%clk 0:02:52]}  e6 {[%clk 0:02:42]} 8. O-O {[%clk 0:02:52]}  Be7 {[%clk 0:02:33]} 9. Kh1 {[%clk 0:02:48]}  O-O {[%clk 0:02:27]} 10. Be3 {[%clk 0:02:47]}  fxe5 {[%clk 0:02:21]} 11. fxe5 {[%clk 0:02:41]}  Bxd3 {[%clk 0:02:21]} 12. Qxd3 {[%clk 0:02:39]}  Nf5 {[%clk 0:02:20]} 13. Nbd2 {[%clk 0:02:35]}  Nxe3 {[%clk 0:02:13]} 14. Qxe3 {[%clk 0:02:34]}  Qe8 {[%clk 0:02:09]} 15. Rf2 {[%clk 0:02:15]}  Qg6 {[%clk 0:02:07]} 16. Raf1 {[%clk 0:02:15]}  Rf5 {[%clk 0:01:55]} 17. Ng1 {[%clk 0:02:02]}  Bg5 {[%clk 0:01:52]} 18. Qe2 {[%clk 0:02:02]}  Raf8 {[%clk 0:01:39]} 19. Rxf5 {[%clk 0:01:57]}  Rxf5 {[%clk 0:01:40]} 20. Rxf5 {[%clk 0:01:51]}  Qxf5 {[%clk 0:01:41]} 21. Nf1 {[%clk 0:01:43]}  Ne7 {[%clk 0:01:37]} 22. Ng3 {[%clk 0:01:41]}  Qg6 {[%clk 0:01:18]} 23. Qg4 {[%clk 0:01:37]}  Bc1 {[%clk 0:01:13]} 24. Qe2 {[%clk 0:01:26]}  Nf5 {[%clk 0:00:57]} 25. Nxf5 {[%clk 0:01:20]}  Qxf5 {[%clk 0:00:58]} 26. h3 {[%clk 0:01:16]}  h5 {[%clk 0:00:52]} 27. b3 {[%clk 0:00:59]}  a6 {[%clk 0:00:50]} 28. Qf3 {[%clk 0:00:44]}  Qg5 {[%clk 0:00:34]} 29. c4 {[%clk 0:00:39]}  c6 {[%clk 0:00:33]} 30. cxd5 {[%clk 0:00:38]}  cxd5 {[%clk 0:00:27]} 31. Qc3 {[%clk 0:00:38]}  Kh7 {[%clk 0:00:15]} 32. Qc8 {[%clk 0:00:33]}  Qh6 {[%clk 0:00:10]} 33. Qxb7 {[%clk 0:00:30]}  Be3 {[%clk 0:00:09]} 34. Nf3 {[%clk 0:00:28]}  Bf2 {[%clk 0:00:09]} 35. Qc6 {[%clk 0:00:16]}  Qe3 {[%clk 0:00:08]} 36. Qc2+ {[%clk 0:00:14]}  Kh8 {[%clk 0:00:05]} 37. Qc8+ {[%clk 0:00:12]}  Kh7 {[%clk 0:00:05]} 38. Qc2+ {[%clk 0:00:09]}  g6 {[%clk 0:00:04]} 39. Qd2 {[%clk 0:00:05]}  Qxd2 {[%clk 0:00:03]} 40. Nxd2 {[%clk 0:00:05]}  Bxd4 {[%clk 0:00:03]} 41. Nf3 {[%clk 0:00:06]}  Bc3 {[%clk 0:00:02]} 42. Kg1 {[%clk 0:00:05]}  Kh6 {[%clk 0:00:02]} 43. Kf2 {[%clk 0:00:05]}  g5 {[%clk 0:00:02]} 44. g4 {[%clk 0:00:05]}  hxg4 {[%clk 0:00:01]} 45. hxg4 {[%clk 0:00:05]}  Kg6 {[%clk 0:00:01]} 46. Ke2 {[%clk 0:00:05]} 1-0


[Site "https://www.chess.com"]

[Event "Titled Tuesday Blitz June 22 2021"]
[White "Gurvich, Vitaly"]
[Black "Kosteniuk, Alexandra"]
[WhiteFideId "24164852"]
[BlackFideId "4128125"]
[WhiteElo "2252"]
[BlackElo "2521"]
[Result "1-0"]
[Round "11"]
[TimeControl "180+1"]
[Date "2021.06.22"]
[WhiteClock "0:00:02"]
[BlackClock "0:00:03"]

1. e4 {[%clk 0:03:00]}  c6 {[%clk 0:02:59]} 2. d4 {[%clk 0:02:59]}  d5 {[%clk 0:02:59]} 3. exd5 {[%clk 0:03:00]}  cxd5 {[%clk 0:02:59]} 4. Bd3 {[%clk 0:03:00]}  Nc6 {[%clk 0:02:59]} 5. c3 {[%clk 0:03:01]}  Nf6 {[%clk 0:02:59]} 6. h3 {[%clk 0:03:00]}  g6 {[%clk 0:02:58]} 7. Nf3 {[%clk 0:02:58]}  Bf5 {[%clk 0:02:58]} 8. O-O {[%clk 0:02:53]}  Qc7 {[%clk 0:02:53]} 9. Re1 {[%clk 0:02:48]}  Bxd3 {[%clk 0:02:42]} 10. Qxd3 {[%clk 0:02:49]}  Bg7 {[%clk 0:02:42]} 11. Nbd2 {[%clk 0:02:40]}  O-O {[%clk 0:02:39]} 12. b3 {[%clk 0:02:37]}  Rad8 {[%clk 0:02:37]} 13. Bb2 {[%clk 0:02:37]}  Rfe8 {[%clk 0:02:37]} 14. Rad1 {[%clk 0:02:34]}  e6 {[%clk 0:02:36]} 15. Qb1 {[%clk 0:02:30]}  Ne7 {[%clk 0:02:32]} 16. Ne5 {[%clk 0:02:04]}  Nf5 {[%clk 0:02:31]} 17. Ndf3 {[%clk 0:02:01]}  Nd6 {[%clk 0:02:23]} 18. Nd3 {[%clk 0:02:01]}  Nfe4 {[%clk 0:02:19]} 19. Rc1 {[%clk 0:02:01]}  b5 {[%clk 0:02:17]} 20. Ba3 {[%clk 0:01:59]}  f6 {[%clk 0:01:54]} 21. Bc5 {[%clk 0:01:30]}  a5 {[%clk 0:01:31]} 22. Qc2 {[%clk 0:01:10]}  Rc8 {[%clk 0:01:23]} 23. a4 {[%clk 0:00:56]}  bxa4 {[%clk 0:01:19]} 24. bxa4 {[%clk 0:00:57]}  Nc4 {[%clk 0:01:16]} 25. Qa2 {[%clk 0:00:48]}  Rb8 {[%clk 0:01:13]} 26. Rxe4 {[%clk 0:00:28]}  dxe4 {[%clk 0:01:13]} 27. Qxc4 {[%clk 0:00:28]}  exd3 {[%clk 0:01:07]} 28. Qxd3 {[%clk 0:00:28]}  Qc6 {[%clk 0:01:00]} 29. Ra1 {[%clk 0:00:25]}  Red8 {[%clk 0:00:51]} 30. Qe3 {[%clk 0:00:24]}  Qd5 {[%clk 0:00:47]} 31. Qe2 {[%clk 0:00:23]}  e5 {[%clk 0:00:43]} 32. Qa6 {[%clk 0:00:18]}  Ra8 {[%clk 0:00:37]} 33. Qe2 {[%clk 0:00:17]}  exd4 {[%clk 0:00:34]} 34. Bxd4 {[%clk 0:00:18]}  Re8 {[%clk 0:00:32]} 35. Qd3 {[%clk 0:00:17]}  Rab8 {[%clk 0:00:32]} 36. Qa6 {[%clk 0:00:16]}  Re6 {[%clk 0:00:30]} 37. Qd3 {[%clk 0:00:15]}  Rbe8 {[%clk 0:00:29]} 38. Rb1 {[%clk 0:00:14]}  Qd6 {[%clk 0:00:25]} 39. Qd2 {[%clk 0:00:13]}  Qa3 {[%clk 0:00:25]} 40. Qc2 {[%clk 0:00:13]}  f5 {[%clk 0:00:21]} 41. Bxg7 {[%clk 0:00:11]}  Kxg7 {[%clk 0:00:22]} 42. h4 {[%clk 0:00:11]}  Qc5 {[%clk 0:00:20]} 43. c4 {[%clk 0:00:08]}  Re2 {[%clk 0:00:19]} 44. Qc3+ {[%clk 0:00:08]}  Kg8 {[%clk 0:00:17]} 45. Rf1 {[%clk 0:00:08]}  R2e4 {[%clk 0:00:15]} 46. Ng5 {[%clk 0:00:07]}  Rxc4 {[%clk 0:00:15]} 47. Qf6 {[%clk 0:00:07]}  Qe7 {[%clk 0:00:16]} 48. Qa6 {[%clk 0:00:06]}  Qc5 {[%clk 0:00:11]} 49. Qb7 {[%clk 0:00:04]}  Re7 {[%clk 0:00:07]} 50. Qb8+ {[%clk 0:00:04]}  Qc8 {[%clk 0:00:07]} 51. Qb3 {[%clk 0:00:04]}  Kg7 {[%clk 0:00:07]} 52. Qb2+ {[%clk 0:00:03]}  Rc3 {[%clk 0:00:07]} 53. h5 {[%clk 0:00:02]}  Rb7 {[%clk 0:00:07]} 54. h6+ {[%clk 0:00:02]}  Kxh6 {[%clk 0:00:06]} 55. Qd2 {[%clk 0:00:03]}  Kg7 {[%clk 0:00:05]} 56. Qd4+ {[%clk 0:00:03]}  Kg8 {[%clk 0:00:05]} 57. Qd5+ {[%clk 0:00:03]}  Kg7 {[%clk 0:00:06]} 58. Qe5+ {[%clk 0:00:04]}  Kg8 {[%clk 0:00:06]} 59. Qd5+ {[%clk 0:00:04]}  Kg7 {[%clk 0:00:07]} 60. Qe5+ {[%clk 0:00:04]}  Kh6 {[%clk 0:00:06]} 61. Qf4 {[%clk 0:00:03]}  Rc4 {[%clk 0:00:06]} 62. Qd2 {[%clk 0:00:03]}  f4 {[%clk 0:00:06]} 63. Nf3 {[%clk 0:00:03]}  Kg7 {[%clk 0:00:06]} 64. Re1 {[%clk 0:00:02]}  Rd7 {[%clk 0:00:05]} 65. Qe2 {[%clk 0:00:02]}  Kg8 {[%clk 0:00:05]} 66. Qe6+ {[%clk 0:00:02]}  Kg7 {[%clk 0:00:05]} 67. Ne5 {[%clk 0:00:02]}  Rdc7 {[%clk 0:00:04]} 68. Qd6 {[%clk 0:00:02]}  Rc1 {[%clk 0:00:04]} 69. Rxc1 {[%clk 0:00:02]}  Rxc1+ {[%clk 0:00:04]} 70. Kh2 {[%clk 0:00:02]}  Rc7 {[%clk 0:00:04]} 71. Qd4 {[%clk 0:00:02]}  Kh6 {[%clk 0:00:04]} 72. Nf3 {[%clk 0:00:02]}  g5 {[%clk 0:00:03]} 73. Qf6+ {[%clk 0:00:02]}  Kh5 {[%clk 0:00:03]} 74. Qxg5# {[%clk 0:00:02]} 1-0


[Site "https://www.chess.com"]

[Event "Titled Tuesday Blitz June 22 2021"]
[White "Hansen, Eric"]
[Black "Indjic, Aleksandar"]
[WhiteFideId "2606771"]
[BlackFideId "911925"]
[WhiteElo "2568"]
[BlackElo "2643"]
[Result "0-1"]
[Round "11"]
[TimeControl "180+1"]
[Date "2021.06.22"]
[WhiteClock "0:00:01"]
[BlackClock "0:00:07"]

1. e4 {[%clk 0:03:00]}  e5 {[%clk 0:02:59]} 2. Nf3 {[%clk 0:03:00]}  Nf6 {[%clk 0:02:59]} 3. Nxe5 {[%clk 0:03:00]}  d6 {[%clk 0:03:00]} 4. Nf3 {[%clk 0:02:59]}  Nxe4 {[%clk 0:02:59]} 5. Nc3 {[%clk 0:02:51]}  Nf6 {[%clk 0:02:59]} 6. d4 {[%clk 0:02:49]}  Be7 {[%clk 0:02:59]} 7. Bd3 {[%clk 0:02:42]}  O-O {[%clk 0:02:59]} 8. h3 {[%clk 0:02:37]}  b6 {[%clk 0:02:59]} 9. O-O {[%clk 0:02:37]}  Bb7 {[%clk 0:02:58]} 10. Re1 {[%clk 0:02:37]}  Nbd7 {[%clk 0:02:57]} 11. a4 {[%clk 0:02:34]}  a6 {[%clk 0:02:57]} 12. Bg5 {[%clk 0:02:01]}  Re8 {[%clk 0:02:57]} 13. Nh4 {[%clk 0:01:59]}  h6 {[%clk 0:02:54]} 14. Bd2 {[%clk 0:01:55]}  Bf8 {[%clk 0:02:47]} 15. Rxe8 {[%clk 0:01:48]}  Qxe8 {[%clk 0:02:47]} 16. Nf5 {[%clk 0:01:48]}  c5 {[%clk 0:02:16]} 17. Qf1 {[%clk 0:01:42]}  cxd4 {[%clk 0:02:14]} 18. Re1 {[%clk 0:01:37]}  Ne5 {[%clk 0:02:03]} 19. Nxd4 {[%clk 0:01:37]}  Qd8 {[%clk 0:01:58]} 20. Be2 {[%clk 0:01:33]}  Qc7 {[%clk 0:01:54]} 21. Rd1 {[%clk 0:01:31]}  d5 {[%clk 0:01:51]} 22. Bf4 {[%clk 0:01:29]}  Nf3+ {[%clk 0:01:51]} 23. Bxf3 {[%clk 0:01:29]}  Qxf4 {[%clk 0:01:51]} 24. Qd3 {[%clk 0:01:20]}  Re8 {[%clk 0:01:46]} 25. g3 {[%clk 0:01:05]}  Qe5 {[%clk 0:01:45]} 26. Kg2 {[%clk 0:01:04]}  Bc5 {[%clk 0:01:35]} 27. Nb3 {[%clk 0:01:04]}  Rd8 {[%clk 0:01:11]} 28. a5 {[%clk 0:01:02]}  Qc7 {[%clk 0:01:09]} 29. Na4 {[%clk 0:00:59]}  Rc8 {[%clk 0:00:37]} 30. axb6 {[%clk 0:00:32]}  Bxb6 {[%clk 0:00:37]} 31. Nxb6 {[%clk 0:00:33]}  Qxb6 {[%clk 0:00:38]} 32. Qd4 {[%clk 0:00:32]}  Qb5 {[%clk 0:00:38]} 33. Rd2 {[%clk 0:00:25]}  Re8 {[%clk 0:00:34]} 34. Qc5 {[%clk 0:00:22]}  Qd7 {[%clk 0:00:29]} 35. Qb4 {[%clk 0:00:19]}  Ba8 {[%clk 0:00:29]} 36. Nd4 {[%clk 0:00:18]}  Qc7 {[%clk 0:00:19]} 37. b3 {[%clk 0:00:15]}  Rb8 {[%clk 0:00:19]} 38. Qa4 {[%clk 0:00:14]}  Qb6 {[%clk 0:00:18]} 39. Qa3 {[%clk 0:00:13]}  Re8 {[%clk 0:00:18]} 40. Qa4 {[%clk 0:00:12]}  Re1 {[%clk 0:00:17]} 41. Rd1 {[%clk 0:00:09]}  Re7 {[%clk 0:00:12]} 42. Qa3 {[%clk 0:00:09]}  Re8 {[%clk 0:00:12]} 43. Qa1 {[%clk 0:00:07]}  g6 {[%clk 0:00:12]} 44. Qc3 {[%clk 0:00:06]}  h5 {[%clk 0:00:12]} 45. h4 {[%clk 0:00:07]}  Bb7 {[%clk 0:00:10]} 46. Qd3 {[%clk 0:00:05]}  Ne4 {[%clk 0:00:09]} 47. Ra1 {[%clk 0:00:04]}  Rc8 {[%clk 0:00:09]} 48. Rd1 {[%clk 0:00:02]}  Rc3 {[%clk 0:00:09]} 49. Qe2 {[%clk 0:00:02]}  a5 {[%clk 0:00:08]} 50. Bxe4 {[%clk 0:00:02]}  dxe4 {[%clk 0:00:08]} 51. Kg1 {[%clk 0:00:02]}  e3 {[%clk 0:00:08]} 52. f3 {[%clk 0:00:02]}  Qc7 {[%clk 0:00:07]} 53. Qe1 {[%clk 0:00:01]}  Qc5 {[%clk 0:00:07]} 54. Kh2 {[%clk 0:00:01]}  Kg7 {[%clk 0:00:07]} 0-1


[Site "https://www.chess.com"]

[Event "Titled Tuesday Blitz June 22 2021"]
[White "Holt, Conrad"]
[Black "Quparadze, Giga"]
[WhiteFideId "2034387"]
[BlackFideId "13602250"]
[WhiteElo "2586"]
[BlackElo "2658"]
[Result "1-0"]
[Round "11"]
[TimeControl "180+1"]
[Date "2021.06.22"]
[WhiteClock "0:02:17"]
[BlackClock "0:01:12"]

1. d4 {[%clk 0:03:00]}  Nf6 {[%clk 0:02:58]} 2. c4 {[%clk 0:02:56]}  e6 {[%clk 0:02:58]} 3. Nc3 {[%clk 0:02:57]}  Bb4 {[%clk 0:02:57]} 4. Qc2 {[%clk 0:02:57]}  d6 {[%clk 0:02:56]} 5. Bd2 {[%clk 0:02:55]}  O-O {[%clk 0:02:55]} 6. a3 {[%clk 0:02:54]}  Bxc3 {[%clk 0:02:55]} 7. Bxc3 {[%clk 0:02:55]}  b6 {[%clk 0:02:55]} 8. e4 {[%clk 0:02:53]}  Bb7 {[%clk 0:02:54]} 9. Bd3 {[%clk 0:02:53]}  Nbd7 {[%clk 0:02:52]} 10. Ne2 {[%clk 0:02:52]}  e5 {[%clk 0:02:52]} 11. O-O {[%clk 0:02:52]}  Re8 {[%clk 0:02:52]} 12. Ng3 {[%clk 0:02:51]}  exd4 {[%clk 0:02:47]} 13. Bxd4 {[%clk 0:02:51]}  Ne5 {[%clk 0:02:47]} 14. Rae1 {[%clk 0:02:51]}  h5 {[%clk 0:02:25]} 15. f4 {[%clk 0:02:37]}  Nxd3 {[%clk 0:02:24]} 16. Qxd3 {[%clk 0:02:37]}  h4 {[%clk 0:02:24]} 17. Nf5 {[%clk 0:02:37]}  g6 {[%clk 0:01:39]} 18. Nh6+ {[%clk 0:02:31]}  Kf8 {[%clk 0:01:36]} 19. e5 {[%clk 0:02:31]}  Ng8 {[%clk 0:01:30]} 20. Nxf7 {[%clk 0:02:21]}  Kxf7 {[%clk 0:01:11]} 21. e6+ {[%clk 0:02:20]}  Rxe6 {[%clk 0:01:11]} 22. Rxe6 {[%clk 0:02:20]}  Kxe6 {[%clk 0:01:12]} 23. Qxg6+ {[%clk 0:02:18]}  Kd7 {[%clk 0:01:12]} 24. Qf5+ {[%clk 0:02:18]}  Kc6 {[%clk 0:01:12]} 25. Qb5# {[%clk 0:02:17]} 1-0


[Site "https://www.chess.com"]

[Event "Titled Tuesday Blitz June 22 2021"]
[White "Iskusnyh, Sergei"]
[Black "Narayanan, Srinath"]
[WhiteFideId "4120027"]
[BlackFideId "5018420"]
[WhiteElo "2492"]
[BlackElo "2472"]
[Result "0-1"]
[Round "11"]
[TimeControl "180+1"]
[Date "2021.06.22"]
[WhiteClock "0:00:08"]
[BlackClock "0:00:06"]

1. d4 {[%clk 0:03:00]}  f5 {[%clk 0:02:59]} 2. c4 {[%clk 0:02:59]}  Nf6 {[%clk 0:02:59]} 3. Nf3 {[%clk 0:03:00]}  g6 {[%clk 0:03:00]} 4. e3 {[%clk 0:03:00]}  Bg7 {[%clk 0:03:00]} 5. Be2 {[%clk 0:03:00]}  O-O {[%clk 0:03:01]} 6. O-O {[%clk 0:03:00]}  d6 {[%clk 0:03:02]} 7. Nc3 {[%clk 0:03:00]}  Nbd7 {[%clk 0:03:01]} 8. b4 {[%clk 0:02:55]}  a5 {[%clk 0:03:00]} 9. b5 {[%clk 0:02:54]}  e5 {[%clk 0:03:01]} 10. dxe5 {[%clk 0:02:47]}  Nxe5 {[%clk 0:03:00]} 11. Nxe5 {[%clk 0:02:43]}  dxe5 {[%clk 0:03:01]} 12. Ba3 {[%clk 0:02:43]}  Re8 {[%clk 0:03:01]} 13. Qxd8 {[%clk 0:02:14]}  Rxd8 {[%clk 0:03:02]} 14. Nd5 {[%clk 0:02:14]}  Nxd5 {[%clk 0:01:52]} 15. cxd5 {[%clk 0:02:12]}  e4 {[%clk 0:01:53]} 16. Rab1 {[%clk 0:02:00]}  b6 {[%clk 0:01:40]} 17. Rfc1 {[%clk 0:01:24]}  Be5 {[%clk 0:01:38]} 18. Bb2 {[%clk 0:01:21]}  Bd6 {[%clk 0:01:32]} 19. Bd4 {[%clk 0:01:09]}  a4 {[%clk 0:01:29]} 20. Bc4 {[%clk 0:00:59]}  Kf7 {[%clk 0:01:24]} 21. Rc2 {[%clk 0:00:58]}  Ke7 {[%clk 0:01:19]} 22. Rbc1 {[%clk 0:00:58]}  Bb7 {[%clk 0:01:14]} 23. g3 {[%clk 0:00:55]}  Rac8 {[%clk 0:01:00]} 24. h4 {[%clk 0:00:53]}  Ba3 {[%clk 0:00:58]} 25. Rb1 {[%clk 0:00:49]}  Bd6 {[%clk 0:00:48]} 26. Rbc1 {[%clk 0:00:49]}  Ra8 {[%clk 0:00:32]} 27. Kg2 {[%clk 0:00:47]}  Ra7 {[%clk 0:00:33]} 28. Rb1 {[%clk 0:00:39]}  Ke8 {[%clk 0:00:28]} 29. Rbc1 {[%clk 0:00:39]}  Rd7 {[%clk 0:00:22]} 30. Rh1 {[%clk 0:00:38]}  h5 {[%clk 0:00:20]} 31. Rhc1 {[%clk 0:00:37]}  Ba3 {[%clk 0:00:20]} 32. Rb1 {[%clk 0:00:36]}  Bxd5 {[%clk 0:00:20]} 33. Bxd5 {[%clk 0:00:36]}  Rxd5 {[%clk 0:00:21]} 34. Rc6 {[%clk 0:00:35]}  Bd6 {[%clk 0:00:21]} 35. Rbc1 {[%clk 0:00:34]}  Kd7 {[%clk 0:00:19]} 36. Rb1 {[%clk 0:00:32]}  Ra5 {[%clk 0:00:19]} 37. Rc4 {[%clk 0:00:30]}  a3 {[%clk 0:00:18]} 38. f3 {[%clk 0:00:23]}  Rdxb5 {[%clk 0:00:16]} 39. Rd1 {[%clk 0:00:20]}  Rd5 {[%clk 0:00:14]} 40. fxe4 {[%clk 0:00:19]}  fxe4 {[%clk 0:00:15]} 41. Rf1 {[%clk 0:00:20]}  Rab5 {[%clk 0:00:15]} 42. Rf7+ {[%clk 0:00:19]}  Ke8 {[%clk 0:00:15]} 43. Rg7 {[%clk 0:00:19]}  Rb2+ {[%clk 0:00:12]} 44. Kh3 {[%clk 0:00:17]}  Rxa2 {[%clk 0:00:12]} 45. Bf6 {[%clk 0:00:16]}  Rf2 {[%clk 0:00:11]} 46. Rxe4+ {[%clk 0:00:15]}  Kf8 {[%clk 0:00:11]} 47. Bc3 {[%clk 0:00:14]}  Rd1 {[%clk 0:00:07]} 48. Rg4 {[%clk 0:00:08]}  Rh1# {[%clk 0:00:06]} 0-1


[Site "https://www.chess.com"]

[Event "Titled Tuesday Blitz June 22 2021"]
[White "Izoria, Zviad"]
[Black "Shevchenko, Kirill"]
[WhiteFideId "13601733"]
[BlackFideId "14129574"]
[WhiteElo "2626"]
[BlackElo "2569"]
[Result "1-0"]
[Round "11"]
[TimeControl "180+1"]
[Date "2021.06.22"]
[WhiteClock "0:00:12"]
[BlackClock "0:00:02"]

1. Nf3 {[%clk 0:03:00]}  Nf6 {[%clk 0:02:58]} 2. c4 {[%clk 0:03:00]}  g6 {[%clk 0:02:58]} 3. Nc3 {[%clk 0:03:00]}  Bg7 {[%clk 0:02:59]} 4. g3 {[%clk 0:03:00]}  O-O {[%clk 0:02:58]} 5. Bg2 {[%clk 0:03:00]}  Nc6 {[%clk 0:02:56]} 6. d4 {[%clk 0:02:53]}  d5 {[%clk 0:02:55]} 7. cxd5 {[%clk 0:02:53]}  Nxd5 {[%clk 0:02:56]} 8. O-O {[%clk 0:02:53]}  Nb6 {[%clk 0:02:56]} 9. d5 {[%clk 0:02:52]}  Na5 {[%clk 0:02:55]} 10. Qc2 {[%clk 0:02:52]}  c6 {[%clk 0:02:53]} 11. dxc6 {[%clk 0:02:52]}  Nxc6 {[%clk 0:02:53]} 12. Rd1 {[%clk 0:02:53]}  Qe8 {[%clk 0:02:53]} 13. Be3 {[%clk 0:02:45]}  Bf5 {[%clk 0:02:51]} 14. Qc1 {[%clk 0:02:41]}  Rd8 {[%clk 0:02:48]} 15. Rxd8 {[%clk 0:02:39]}  Qxd8 {[%clk 0:02:48]} 16. Bh6 {[%clk 0:02:40]}  Nd4 {[%clk 0:02:23]} 17. Bxg7 {[%clk 0:02:31]}  Kxg7 {[%clk 0:02:24]} 18. Qf4 {[%clk 0:02:23]}  Nc6 {[%clk 0:01:56]} 19. Ne5 {[%clk 0:02:16]}  Qd4 {[%clk 0:01:44]} 20. Bxc6 {[%clk 0:01:22]}  Qxf4 {[%clk 0:01:43]} 21. gxf4 {[%clk 0:01:23]}  bxc6 {[%clk 0:01:43]} 22. Nxc6 {[%clk 0:01:24]}  Bd7 {[%clk 0:01:23]} 23. Nxa7 {[%clk 0:01:12]}  Nc4 {[%clk 0:01:22]} 24. b3 {[%clk 0:00:55]}  Nd6 {[%clk 0:01:22]} 25. a4 {[%clk 0:00:55]}  Ra8 {[%clk 0:01:21]} 26. Nd5 {[%clk 0:00:42]}  Rxa7 {[%clk 0:01:20]} 27. Nxe7 {[%clk 0:00:43]}  Ne4 {[%clk 0:01:06]} 28. Rc1 {[%clk 0:00:35]}  Bxa4 {[%clk 0:00:53]} 29. Nc8 {[%clk 0:00:33]}  Ra6 {[%clk 0:00:47]} 30. bxa4 {[%clk 0:00:33]}  Rxa4 {[%clk 0:00:48]} 31. Rc2 {[%clk 0:00:26]}  h5 {[%clk 0:00:43]} 32. Kg2 {[%clk 0:00:26]}  Ra3 {[%clk 0:00:41]} 33. Nb6 {[%clk 0:00:22]}  h4 {[%clk 0:00:42]} 34. h3 {[%clk 0:00:22]}  Nf6 {[%clk 0:00:42]} 35. Nc4 {[%clk 0:00:18]}  Ra4 {[%clk 0:00:42]} 36. e3 {[%clk 0:00:18]}  Nd5 {[%clk 0:00:39]} 37. Ne5 {[%clk 0:00:18]}  Ra3 {[%clk 0:00:37]} 38. Rd2 {[%clk 0:00:17]}  Nc3 {[%clk 0:00:31]} 39. Rd3 {[%clk 0:00:17]}  Nb1 {[%clk 0:00:16]} 40. Rd7 {[%clk 0:00:15]}  Ra2 {[%clk 0:00:10]} 41. Rxf7+ {[%clk 0:00:13]}  Kg8 {[%clk 0:00:11]} 42. Rf6 {[%clk 0:00:13]}  Nc3 {[%clk 0:00:11]} 43. Rxg6+ {[%clk 0:00:14]}  Kh7 {[%clk 0:00:12]} 44. Kf3 {[%clk 0:00:13]}  Nd1 {[%clk 0:00:12]} 45. Rg2 {[%clk 0:00:13]}  Nc3 {[%clk 0:00:09]} 46. Ng4 {[%clk 0:00:10]}  Nb1 {[%clk 0:00:07]} 47. Nf6+ {[%clk 0:00:10]}  Kh6 {[%clk 0:00:07]} 48. Ne4 {[%clk 0:00:10]}  Ra4 {[%clk 0:00:05]} 49. Rg4 {[%clk 0:00:11]}  Kh5 {[%clk 0:00:03]} 50. Nf6+ {[%clk 0:00:09]}  Kh6 {[%clk 0:00:03]} 51. Rxh4+ {[%clk 0:00:09]}  Kg6 {[%clk 0:00:03]} 52. Ne4 {[%clk 0:00:10]}  Na3 {[%clk 0:00:03]} 53. f5+ {[%clk 0:00:08]}  Kg7 {[%clk 0:00:04]} 54. Rg4+ {[%clk 0:00:07]}  Kf8 {[%clk 0:00:04]} 55. Ng3 {[%clk 0:00:05]}  Nc4 {[%clk 0:00:04]} 56. Kg2 {[%clk 0:00:05]}  Rb4 {[%clk 0:00:03]} 57. Rd4 {[%clk 0:00:05]}  Ke7 {[%clk 0:00:03]} 58. Kh2 {[%clk 0:00:05]}  Kf6 {[%clk 0:00:03]} 59. h4 {[%clk 0:00:05]}  Ke5 {[%clk 0:00:04]} 60. h5 {[%clk 0:00:05]}  Rb2 {[%clk 0:00:03]} 61. Rxc4 {[%clk 0:00:05]}  Rxf2+ {[%clk 0:00:03]} 62. Kh3 {[%clk 0:00:06]}  Rb2 {[%clk 0:00:02]} 63. Re4+ {[%clk 0:00:06]}  Kf6 {[%clk 0:00:03]} 64. Rg4 {[%clk 0:00:07]}  Rb7 {[%clk 0:00:01]} 65. Rg6+ {[%clk 0:00:08]}  Ke5 {[%clk 0:00:02]} 66. Re6+ {[%clk 0:00:09]}  Kd5 {[%clk 0:00:02]} 67. Kg4 {[%clk 0:00:09]}  Rg7+ {[%clk 0:00:02]} 68. Kf4 {[%clk 0:00:09]}  Rh7 {[%clk 0:00:02]} 69. Ne4 {[%clk 0:00:10]}  Kc4 {[%clk 0:00:01]} 70. Nf6 {[%clk 0:00:11]}  Rh6 {[%clk 0:00:02]} 71. e4 {[%clk 0:00:12]}  Kd4 {[%clk 0:00:02]} 72. Kg5 {[%clk 0:00:11]}  Rh8 {[%clk 0:00:03]} 73. h6 {[%clk 0:00:11]}  Ke3 {[%clk 0:00:03]} 74. h7 {[%clk 0:00:12]}  Kf3 {[%clk 0:00:02]} 75. Re8 {[%clk 0:00:12]}  Rxh7 {[%clk 0:00:02]} 76. Nxh7 {[%clk 0:00:12]} 1-0


[Site "https://www.chess.com"]

[Event "Titled Tuesday Blitz June 22 2021"]
[White "Karttunen, Mika"]
[Black "Chyzy, Jakub"]
[WhiteFideId "502081"]
[BlackFideId "21806209"]
[WhiteElo "2343"]
[BlackElo "2013"]
[Result "0-1"]
[Round "11"]
[TimeControl "180+1"]
[Date "2021.06.22"]
[WhiteClock "0:00:33"]
[BlackClock "0:00:12"]

1. e4 {[%clk 0:03:00]}  Nf6 {[%clk 0:03:00]} 2. e5 {[%clk 0:02:58]}  Nd5 {[%clk 0:03:01]} 3. d4 {[%clk 0:02:59]}  d6 {[%clk 0:03:01]} 4. exd6 {[%clk 0:02:59]}  exd6 {[%clk 0:03:01]} 5. c4 {[%clk 0:02:59]}  Nb6 {[%clk 0:03:01]} 6. Nc3 {[%clk 0:02:59]}  Be7 {[%clk 0:03:01]} 7. Be3 {[%clk 0:03:00]}  O-O {[%clk 0:03:01]} 8. Qd2 {[%clk 0:03:00]}  Bf6 {[%clk 0:03:00]} 9. Rc1 {[%clk 0:03:00]}  Nc6 {[%clk 0:02:59]} 10. h3 {[%clk 0:02:54]}  Re8 {[%clk 0:02:50]} 11. Nf3 {[%clk 0:02:53]}  Bf5 {[%clk 0:02:46]} 12. Be2 {[%clk 0:02:51]}  d5 {[%clk 0:02:42]} 13. b3 {[%clk 0:02:43]}  dxc4 {[%clk 0:02:34]} 14. bxc4 {[%clk 0:02:43]}  Qd7 {[%clk 0:02:15]} 15. O-O {[%clk 0:02:40]}  Rad8 {[%clk 0:02:14]} 16. Rfd1 {[%clk 0:02:39]}  Na5 {[%clk 0:01:52]} 17. Ne4 {[%clk 0:02:01]}  Rxe4 {[%clk 0:01:28]} 18. Qxa5 {[%clk 0:02:00]}  Bxh3 {[%clk 0:01:22]} 19. Ne5 {[%clk 0:01:33]}  Qf5 {[%clk 0:00:38]} 20. gxh3 {[%clk 0:01:27]}  Qxh3 {[%clk 0:00:30]} 21. Bf1 {[%clk 0:01:22]}  Qh5 {[%clk 0:00:23]} 22. Bg2 {[%clk 0:01:21]}  Rxe5 {[%clk 0:00:23]} 23. dxe5 {[%clk 0:01:09]}  Rxd1+ {[%clk 0:00:24]} 24. Rxd1 {[%clk 0:01:09]}  Qxd1+ {[%clk 0:00:25]} 25. Bf1 {[%clk 0:01:06]}  Nxc4 {[%clk 0:00:17]} 26. Qxc7 {[%clk 0:00:57]}  Nxe3 {[%clk 0:00:17]} 27. Qc8+ {[%clk 0:00:54]}  Qd8 {[%clk 0:00:17]} 28. Qxd8+ {[%clk 0:00:47]}  Bxd8 {[%clk 0:00:18]} 29. fxe3 {[%clk 0:00:47]}  Bc7 {[%clk 0:00:18]} 30. Bg2 {[%clk 0:00:44]}  b6 {[%clk 0:00:18]} 31. e6 {[%clk 0:00:44]}  fxe6 {[%clk 0:00:18]} 32. Kf2 {[%clk 0:00:44]}  Kf7 {[%clk 0:00:18]} 33. Kf3 {[%clk 0:00:44]}  Bd6 {[%clk 0:00:17]} 34. Bf1 {[%clk 0:00:41]}  Kf6 {[%clk 0:00:16]} 35. Bd3 {[%clk 0:00:41]}  h5 {[%clk 0:00:15]} 36. Bb5 {[%clk 0:00:39]}  g5 {[%clk 0:00:14]} 37. Ke4 {[%clk 0:00:39]}  g4 {[%clk 0:00:14]} 38. Be8 {[%clk 0:00:38]}  Kg5 {[%clk 0:00:14]} 39. Bd7 {[%clk 0:00:37]}  h4 {[%clk 0:00:11]} 40. Bxe6 {[%clk 0:00:37]}  h3 {[%clk 0:00:11]} 41. Bd5 {[%clk 0:00:37]}  g3 {[%clk 0:00:10]} 42. Kf3 {[%clk 0:00:37]}  g2 {[%clk 0:00:10]} 43. Kf2 {[%clk 0:00:36]}  Bh2 {[%clk 0:00:10]} 44. Bxg2 {[%clk 0:00:36]}  hxg2 {[%clk 0:00:11]} 45. Kxg2 {[%clk 0:00:37]}  Bd6 {[%clk 0:00:11]} 46. Kf3 {[%clk 0:00:38]}  Kf5 {[%clk 0:00:11]} 47. Ke2 {[%clk 0:00:37]}  Ke5 {[%clk 0:00:12]} 48. Kd2 {[%clk 0:00:37]}  Bc5 {[%clk 0:00:12]} 49. Kd3 {[%clk 0:00:38]}  b5 {[%clk 0:00:13]} 50. Kc3 {[%clk 0:00:37]}  a5 {[%clk 0:00:12]} 51. Kb3 {[%clk 0:00:35]}  Bxe3 {[%clk 0:00:12]} 52. a4 {[%clk 0:00:33]}  b4 {[%clk 0:00:12]} 0-1


[Site "https://www.chess.com"]